{"text_format":"1","workbook":"xlsx","n_sheets":27,"sheets":["Note per la compilazione","INDICE TABELLE e ANAGRAFICA","1","1a","1b","2","2b","3","3a","4","5"," 5a","5b","6a","6a SME","6b","8 e 8a"," 8a-bis","10","11","11a","11b","12a","12b","16 ","17","18"],"not_rendered":{"charts":1,"images":0,"macros":0,"external_links":0,"defined_names":20,"comments":0,"pivot_tables":0},"unopened":[],"bounds":{"document_bytes":16777216,"sheet_cells":100000,"rows_first":2000,"rows_last":500,"rows_between":2000,"halvings":0,"cell_chars":16384,"cell_head_chars":4096},"cells_cut":0,"cells_raw":0,"read":"whole","date_system":"1900"}

{"sheet":"Note per la compilazione","index":0,"n_rows":11,"n_cols":3,"rows_kept":11,"cut":false,"hidden":false,"merged":[[0,0,0,2],[2,0,6,0]]}
["Note per la COMPILAZIONE delle schede"]
[]
["i campi di color -->","dati compilabili liberamente","descrittivi nel foglio Anagrafica"]
[null,"dati compilabili liberamente","descrittivi nei fogli da 1 a 12 - Rif cap. 3.1 LG PMC"]
[null,"dati compilabili liberamente","descrittivi nei fogli da 16 a 18 - Rif cap. 3.2 LG PMC"]
[null,"dati compilabili liberamente","numerici"]
[null,"formule","autocompilati sulla base di altri dati inseriti"]
[]
[null,700,"formattazione carattere che indica degli esempi"]
[]
["Duplicare le tabelle ove presenti più informazioni sullo stesso oggetto ambientale (es. tabella 6a-SME)"]

{"sheet":"INDICE TABELLE e ANAGRAFICA","index":1,"n_rows":30,"n_cols":21,"rows_kept":30,"cut":false,"hidden":false,"merged":[[27,11,29,18],[0,11,0,20],[1,11,1,20],[2,11,2,20],[4,11,6,18],[7,11,8,18],[9,11,10,18],[11,11,11,18],[12,11,14,18],[15,11,17,18],[18,11,20,18],[21,11,21,18],[22,11,24,18],[0,0,0,9],[1,0,1,9],[2,0,2,9],[3,0,3,9],[25,11,26,18]]}
["Autorizzazione Integrata Ambientale - IPPC",null,null,null,null,null,null,null,null,null,null,"TABELLE"]
["REPORT ANNUALE PER L'INVIO DEI DATI ",null,null,null,null,null,null,null,null,null,null," (rif. All. XXX alla Determina AIA n° @@@ )"]
["DI AUTOCONTROLLO",null,null,null,null,null,null,null,null,null,null,"rif. Sinottico Linea Guida per lo sviluppo del Piano di Monitoraggio e Controllo"]
["ANAGRAFICA AZIENDA",null,null,null,null,null,null,null,null,null,null,"TEMI",null,null,null,null,null,null,null,"tabella","X\nse compilata"]
[null,null,null,null,null,null,null,null,null,null,null,"Materie prime, ausiliarie, sottoprodotti/ EoW, rifiuti in ingresso\n1/ 1a/ 1b/ 2",null,null,null,null,null,null,null,"1"]
["ANNO DI RIFERIMENTO ",null,null,null,null,null,null,null,null,null,null,null,null,null,null,null,null,null,null,"1a"]
[null,null,null,null,null,null,null,null,null,null,null,null,null,null,null,null,null,null,null,"1b"]
[null,null,null,null,null,null,null,null,null,null,null,"Controllo radiometrico: materie prime/ rifiuti in ingresso",null,null,null,null,null,null,null,"2"]
[null,null,null,null,null,null,null,null,null,null,null,null,null,null,null,null,null,null,null,"2b"]
["Categoria IPPC (principale)",null,null,null,"Descrizione attività",null,null,null,null,null,null,"Risorse idriche",null,null,null,null,null,null,null,"3/ 3a"]
["Categoria IPPC (secondaria/e)",null,null,null,"Descrizione attività",null,null,null,null,null,null,null,null,null,null,null,null,null,null,"3a"]
[null,null,null,null,null,null,null,null,null,null,null,"Combustibili",null,null,null,null,null,null,null,"4"]
["PIVA",null,null,null,null,null,null,null,null,null,null,"Risorse energetiche",null,null,null,null,null,null,null,"5"]
[null,null,null,null,null,null,null,null,null,null,null,null,null,null,null,null,null,null,null,"5a"]
["Indirizzo impianto",null,"via",null,null,null,null,null,null,null,null,null,null,null,null,null,null,null,null,"5b"]
[null,null,null,null,null,null,null,null,null,null,null,"Emissioni convogliate in atmosfera",null,null,null,null,null,null,null,"6a"]
[null,null,"n°",null,null,"CAP",null,null,null,null,null,null,null,null,null,null,null,null,null,"6a SME"]
[null,null,null,null,null,null,null,null,null,null,null,null,null,null,null,null,null,null,null,"6b"]
[null,null,"città",null,null,null,null,null,null,null,null,"Emissioni in acqua",null,null,null,null,null,null,null,"8a"]
[null,null,null,null,null,null,null,null,null,null,null,null,null,null,null,null,null,null,null,"8a bis"]
[null,null,null,null,null,null,null,null,null,null,null,null,null,null,null,null,null,null,null,"8a ter"]
[null,null,null,null,null,null,null,null,null,null,null,"Rifiuti ",null,null,null,null,null,null,null,"10"]
[null,null,null,null,null,null,null,null,null,null,null,"Prodotti in uscita",null,null,null,null,null,null,null,"11"]
[null,null,null,null,null,null,null,null,null,null,null,null,null,null,null,null,null,null,null,"11a"]
[null,null,null,null,null,null,null,null,null,null,null,null,null,null,null,null,null,null,null,"11b"]
["Redazione a cura di ",null,null,null,null,null,null,null,null,"Data compilazione",null,"Monitoraggio acque sotterranee e suolo",null,null,null,null,null,null,null,"12a"]
[null,null,null,null,null,null,null,null,null,null,null,null,null,null,null,null,null,null,null,"12b"]
["nome/cognome",null,null,null,null,null,null,null,null,null,null,"INDICATORI DI PRESTAZIONE",null,null,null,null,null,null,null,"16"]
["ruolo/ditta",null,null,null,null,null,null,null,null,null,null,null,null,null,null,null,null,null,null,"17"]
["e-mail",null,null,null,null,null,null,null,null,null,null,null,null,null,null,null,null,null,null,"18"]

{"sheet":"1","index":2,"n_rows":9,"n_cols":8,"rows_kept":9,"cut":false,"hidden":false,"merged":[[0,0,0,7]]}
["CONSUMI"]
["Tabella 1 - Materie prime,ausiliarie, intermedi non pericolosi(sostanze/miscele)"]
["torna all'indice tabelle"]
[]
["Denominazione Codice (CAS,…)","Fase di utilizzo","Stato fisico","Modalità di stoccaggio","Area di stoccaggio","Metodo misura","Consumo","Modalità di registrazione"]
[]
[]
[]
[null,null,null,null,null,"TOTALE",{"$f":"SUM(G6:G7)","v":0},"t"]

{"sheet":"1a","index":3,"n_rows":78,"n_cols":10,"rows_kept":78,"cut":false,"hidden":false,"merged":[[0,0,0,9]]}
["CONSUMI"]
["Tabella 1a - Materie prime, ausiliarie, intermedi pericolosi (sostanze/miscele)"]
["torna all'indice tabelle"]
[]
["Denominazione Codice (CAS,…)","Classificazione di pericolosità (CLP)","Fase di utilizzo","Stato fisico","Modalità di stoccaggio","Metodo misura","Area di stoccaggio","Max quantità istantanea","Consumo","Modalità di registrazione"]
[]
[]
[]
[null,null,null,null,null,null,null,"TOTALE",{"$f":"SUM(I6:I7)","v":0},"t"]
[]
[]
[]
[]
[]
[]
[]
[]
[]
[]
[]
[]
[]
[]
[]
[]
[]
[]
[]
[]
[]
[]
[]
[]
[]
[]
[]
[]
[]
[]
[]
[]
[]
[]
[]
[]
[]
[]
[]
[]
[]
[]
[]
[]
[]
[]
[]
[]
[]
[]
[]
[]
["Tabella 1b - ","Sottoprodotti/EOW in ingresso"]
[]
["Denominazione","Consumo (t)","Impianto di provenienza","Materia prima sostituita","Norma Tecnica di riferimento","Modalità di registrazione dei controlli effettuati"]
[]
[]
[]
["TOTALE",null,"t"]
[]
[]
[]
["Tabella 2 -","Rifiuti in ingresso *"]
[]
["EER","Fase di destinazione","Punto di misura","Materie prima sostiuita [1]","Modalità di controllo e di analisi","Quantitativo (t)","Contaminanti indice","Metodo misura","Frequenza","Modalità di registrazione dei controlli effettuati"]
[]
[]
["* per ogni rifiuto fornire in allegato l’elenco delle caratterizzazioni di base ad esso relative"]
["[1] Non pertinente nel caso di impianti di trattamento rifiuti",null,null,null,"TOTALE",null,"t"]

{"sheet":"1b","index":4,"n_rows":10,"n_cols":6,"rows_kept":10,"cut":false,"hidden":false,"merged":[[0,0,0,5]]}
["CONSUMI"]
["Tabella 1b - Sottoprodotti/EOW in ingresso"]
["torna all'indice tabelle"]
[]
["Denominazione","Consumo (t)","Impianto di provenienza","Materia prima sostituita","Norma Tecnica di riferimento","Modalità di registrazione"]
[]
[]
[]
[]
["TOTALE",{"$f":"SUM(B6:B8)","v":0},"t"]

{"sheet":"2","index":5,"n_rows":12,"n_cols":10,"rows_kept":12,"cut":false,"hidden":false,"merged":[[0,0,0,9]]}
["CONSUMI"]
["Tabella 2 - Rifiuti in ingresso *"]
["torna all'indice tabelle"]
[]
["EER","Fase di destinazione","Punto di misura","Materie prima sostiuita [1]","Modalità di controllo e di analisi","Quantitativo (t)","Contaminanti indice","Metodo misura","Frequenza","Modalità di registrazione"]
[]
[]
[]
[]
[null,null,null,null,"TOTALE",{"$f":"SUM(F6:F8)","v":0},"t"]
["* per ogni rifiuto fornire in allegato l’elenco delle caratterizzazioni di base ad esso relative"]
["[1] Non pertinente nel caso di impianti di trattamento rifiuti"]

{"sheet":"2b","index":6,"n_rows":7,"n_cols":5,"rows_kept":7,"cut":false,"hidden":false,"merged":[[0,0,0,4]]}
["CONSUMI"]
["Tabella 2b –  Controlli radiometrici"]
["torna all'indice tabelle"]
[]
["Se previsto il controllo radiometrico in entrata annotare le anomalie registrate"]
[]
["Denominazione","Modalità stoccaggio","Strumentazione usata ","Data controllo","Anomalia registrata"]

{"sheet":"3","index":7,"n_rows":10,"n_cols":8,"rows_kept":10,"cut":false,"hidden":false,"merged":[[0,0,0,7]]}
["CONSUMI"]
["TABELLA 3 - Risorse idriche approvigionamento"]
["torna all'indice tabelle"]
[]
["Fonte di approviggionamento","Punto di prelievo","Punto di misura","Utilizzo\n(sanitario,industriale, ecc.)","Metodo misura ","Frequenza","Consumo (m3)","Modalità di registrazione"]
[]
[]
[]
[]
[null,null,null,null,null,"TOTALE",{"$f":"SUM(G6:G8)","v":0},"m3"]

{"sheet":"3a","index":8,"n_rows":10,"n_cols":9,"rows_kept":10,"cut":false,"hidden":false,"merged":[[0,0,0,8]]}
["CONSUMI"]
["TABELLA 3a - Risorse idriche \"recupero\""]
["torna all'indice tabelle"]
[]
["Fonte/Acqua recuperata","Percentuale di acqua recuperata","Punto di prelievo","Punto di misura","Utilizzo (sanitario, industriale, ecc)","Metodo misura","Frequenza","Consumo (m3)","Modalita’ di registrazione"]
[]
[]
[]
[]
[null,null,null,null,null,null,"TOTALE",{"$f":"SUM(H6:H8)","v":0},"m3"]

{"sheet":"4","index":9,"n_rows":10,"n_cols":6,"rows_kept":10,"cut":false,"hidden":false,"merged":[[0,0,0,5]]}
["CONSUMI"]
["TABELLA 4 -  Combustibili"]
["torna all'indice tabelle"]
[]
["Tipologia","Fase di utilizzo e punto di misura","Metodo misura","Frequenza","Consumo (t/Sm3)","Modalità di registrazione"]
[]
[]
[]
[]
[null,null,null,"TOTALE",{"$f":"SUM(E6:E8)","v":0},"t/Sm3"]

{"sheet":"5","index":10,"n_rows":9,"n_cols":7,"rows_kept":9,"cut":false,"hidden":false,"merged":[[0,0,0,6]]}
["PRODUZIONE di risorsa energetica"]
["TABELLA 5  -  Risorse energetiche"]
["torna all'indice tabelle"]
[]
["Energia prodotta","Utenze","Reparto di utilizzo","Produzione (Mwh)","Metodo di misura","Frequenza controllo e registrazione dati","Modalità di registrazione"]
["Elettrica"]
["Termica"]
[]
[null,null,"TOTALE",{"$f":"SUM(D6:D7)","v":0},"MWh"]

{"sheet":" 5a","index":11,"n_rows":9,"n_cols":7,"rows_kept":9,"cut":false,"hidden":false,"merged":[[0,0,0,6]]}
["CONSUMI di risorsa energetica"]
["TABELLA 5 -  Risorse energetiche"]
["torna all'indice tabelle"]
[]
["Energia consumata","Utenze","Reparto di utilizzo","Consumo (MWh)","Metodo di misura","Frequenza controllo e registrazione dati","Modalità di registrazione"]
["Elettrica"]
["Termica"]
[]
[null,null,"TOTALE",{"$f":"SUM(D6:D7)","v":0},"MWh"]

{"sheet":"5b","index":12,"n_rows":6,"n_cols":5,"rows_kept":6,"cut":false,"hidden":false,"merged":[[0,0,0,4]]}
["CONSUMI"]
["TABELLA 5b –  cosφ"]
["torna all'indice tabelle"]
[]
["Parametro","Valore","Metodo di misura","Frequenza controllo e registrazione dati","Modalità di registrazione"]
["cosφ"]

{"sheet":"6a","index":13,"n_rows":5,"n_cols":12,"rows_kept":5,"cut":false,"hidden":false,"merged":[[0,0,0,11]]}
["EMISSIONI"]
["TABELLA 6a - Inquinanti e parametri monitorati in discontinuo"]
["torna all'indice tabelle"]
[]
["Sigla punto di emissione","Origine emissione","Parametro","Unità di misura","Frequenza","Principio di misura","Metodo","VLE (BAT-AEL/altro)","Concentrazione misurata (mg/Nm3)","Flusso di massa (kg/h)","Data autocontrollo","Modalità di registrazione"]

{"sheet":"6a SME","index":14,"n_rows":27,"n_cols":3,"rows_kept":27,"cut":false,"hidden":false,"merged":[[12,0,12,2],[0,0,0,7]]}
["EMISSIONI"]
["TABELLA 6a SME - Inquinanti e parametri monitorati in continuo"]
["torna all'indice tabelle"]
[]
[]
["\"A titolo esemplificativo è stata già compilata la Tabella  e prodotto il grafico\""]
["Punto di emissione","E1"]
[]
["Parametro ","NOx"]
[]
[]
[]
["Medie mensili"]
["mese","mg/Nm3","kg/h"]
["gennaio",700]
["febbraio",550]
["marzo",650]
["aprile",725]
["maggio",525]
["giugno",650]
["luglio",580]
["agosto",600]
["settembre",725]
["ottobre",150]
["novembre",700]
["dicembre",680]
["medie annue",{"$f":"AVERAGE(B15:B26)","v":602.91666666666663},"manca formula?"]

{"sheet":"6b","index":15,"n_rows":26,"n_cols":4,"rows_kept":26,"cut":false,"hidden":false,"merged":[[27,0,27,1],[15,0,15,1],[17,0,17,1],[5,0,5,1],[7,0,7,1],[9,0,9,1],[11,0,11,1],[13,0,13,1],[0,0,0,3],[19,0,19,1],[21,0,21,1],[23,0,23,1],[25,0,25,1]]}
["EMISSIONI"]
["TABELLA 6b - Scarsamente rilevanti"]
["torna all'indice tabelle"]
[]
["Punti di emissione","Origine","Parametro/Modalità di controllo","Modalità di registrazione "]
["Es. Gruppi elettrogeni >1 MW"]
[]
["Es. Impianto antincendio > 1 MW"]
[]
["Es. Laboratorio chimico"]
[]
["Es. Impianto antincendio > 1 MW"]
[]
["Es. Stoccaggio ceneri leggere"]
[]
["Es. Impianti di trattamento acque"]
[]
["Es. Sistema di lubrificazione macchinario principale"]
[]
["Es. Serbatoi stoccaggio oli minerali"]
[]
["Es. Locali batterie"]
[]
["Es. Stazione decompressione e rete gas naturale"]
[]
["Es. Altri punti di emissione"]

{"sheet":"8 e 8a","index":16,"n_rows":5,"n_cols":9,"rows_kept":5,"cut":false,"hidden":false,"merged":[[0,0,0,8]]}
["EMISSIONI"]
["Tabella 8a - Scarichi idrici"]
["torna all'indice tabelle"]
[]
["Sigla Punto di emissione","Tipologia di scarico\nDiretto (D)/Indiretto (I)\n","Parametro","Metodo","Frequenza","Data autocontrollo","Concentrazione (mg/L)","VLE (BAT-AEL/altro)","Modalità di registrazione"]

{"sheet":" 8a-bis","index":17,"n_rows":14,"n_cols":6,"rows_kept":14,"cut":false,"hidden":false,"merged":[[0,0,0,5],[13,0,14,5]]}
["EMISSIONI"]
["TABELLA 8a-bis - SCARICHI IDRICI - Parametri BAT AEL monitorati in continuo/discontinuo da ponderare a portata"]
["torna all'indice tabelle"]
[]
["Data","Portata misurata","Parametro X [mg/l]               da RdP giornaliero ","Flusso di massa Parametro X  [kg/giorno]","Parametro Y      [mg/l] da RdP giornaliero ","Parametro Y [kg/giorno]"]
["01/01/20xx"]
["[…]"]
["31/12/20xx"]
["Media Mese XX",{"$f":"IFERROR(AVERAGE(B6:B8),\"\")","v":""},{"$f":"IFERROR(AVERAGE(C6:C8),\"\")","v":""},"","",""]
["TOTALE ANNUO  (t/anno)",{"$f":"IF(SUM(B6:B8)=0,\"\",SUM(B6:B8))","v":""},{"$f":"IF(SUM(C6:C8)=0,\"\",SUM(C6:C8))","v":""},"","",""]
["CONCENTRAZIONE MEDIA ANNUA [mg/l] PONDERATA"]
["Limiti BATc MEDIA PONDERATA"]
[]
["Da compilare qualora richiesto nella fase istruttoria con VLE come medie annue ponderate (se il flusso massico è specifico, come per le cartiere, integrare il dato produttivo nei termini indicati dalle BATc)"]

{"sheet":"10","index":18,"n_rows":8,"n_cols":8,"rows_kept":8,"cut":false,"hidden":false,"merged":[[10,0,10,5],[11,0,11,7],[0,0,0,7]]}
["PRODUZIONE"]
["Tabella 10 - Rifiuti prodotti"]
["torna all'indice tabelle"]
[]
["Qualora non già trasmessi in adempimento alla norma di settore art. 189 della parte Quarta al D.Lgs 152/06 e smi"]
[]
["Denominazione (EER)","quantitativi prodotti\n(t o m3)","quantitativi in uscita\n(t o m3)","Quantitativo complessivo in giacenza\n(t o m3)","Impianto di smaltimento/recupero finale","Rif.rapporti di prova bollettini delle analisi di conformità a requisiti tecnici e ambientali","Frequenza","Modalità di registrazione "]
[null,null,null,null,null,null,"Per ciascun lotto di rifiuto prodotto","a cura del Gestore"]

{"sheet":"11","index":19,"n_rows":9,"n_cols":4,"rows_kept":9,"cut":false,"hidden":false,"merged":[[0,0,0,3]]}
["PRODUZIONE - Prodotti in uscita"]
["Tabella 11 - Prodotti"]
["torna all'indice tabelle"]
[]
["Denominazione","quantitativi prodotti nell’anno di riferimento \n(t o m3)","quantitativi in uscita\nnell’anno di riferimento\n(t o m3)","Modalità di registrazione"]
[]
[]
[]
["TOTALE",{"$f":"SUM(B6:B7)","v":0},"t"]

{"sheet":"11a","index":20,"n_rows":9,"n_cols":6,"rows_kept":9,"cut":false,"hidden":false,"merged":[[0,0,0,5]]}
["PRODUZIONE - Prodotti in uscita"]
["Tabella 11a - Sottoprodotti"]
["torna all'indice tabelle"]
[]
["Denominazione","quantitativi prodotti","quantitativi in uscita","Quantitativo complessivo in giacenza","Destinazione finale","Modalità di registrazione"]
[]
[]
[]
["TOTALE",{"$f":"SUM(B6:B7)","v":0},{"$f":"SUM(C6:C7)","v":0},"t"]

{"sheet":"11b","index":21,"n_rows":9,"n_cols":8,"rows_kept":9,"cut":false,"hidden":false,"merged":[[0,0,0,7]]}
["PRODUZIONE - Prodotti in uscita"]
["Tabella 11b - End of waste"]
["torna all'indice tabelle"]
[]
["Denominazione","EER in ingresso","quantitativi prodotti","quantitativi in uscita","Quantitativo complessivo in giacenza","Destinazione finale","Rif. bollettini analisi di conformità a requisiti tecnici e ambientali","Modalità di registrazione dei controlli effettuati"]
[null,null,null,null,null,null,"Per ciascun lotto di EoW prodotto"]
[null,null,null,null,null,null,"Per ciascun lotto di EoW prodotto"]
[]
["TOTALE",{"$f":"SUM(B6:B7)","v":0},"t"]

{"sheet":"12a","index":22,"n_rows":5,"n_cols":8,"rows_kept":5,"cut":false,"hidden":false,"merged":[[0,0,0,7]]}
["EMISSIONI - Monitoraggio acque sotterranee e suolo"]
["Tabella 12a -  Monitoraggio acque sotterranee"]
["torna all'indice tabelle"]
[]
["Piezometro","Frequenza campionamento","Data campionamento","Parametri (inclusa la soggiacenza)","Metodo di misura","Concentrazione misurata","Modalità di registrazione","Note"]

{"sheet":"12b","index":23,"n_rows":5,"n_cols":9,"rows_kept":5,"cut":false,"hidden":false,"merged":[[0,0,0,8]]}
["EMISSIONI - Monitoraggio acque sotterranee e suolo"]
["Tabella 12 b - Suolo"]
["torna all'indice tabelle"]
[]
["Sigla punto campionamento","Coordinata Geografica punto di campionamento","Frequenza campionamento","Data campionamento","Parametri ","Metodo di misura","Concentrazione misurata","Modalità di registrazione","Note"]

{"sheet":"16 ","index":24,"n_rows":12,"n_cols":3,"rows_kept":12,"cut":false,"hidden":false,"merged":[[10,0,11,0],[0,0,0,2]]}
["GESTIONALE"]
["Tabella 16 – Indicatori di prestazione"]
[null,null,"torna all'indice tabelle"]
[]
["Indicatore","Unità di misura","Valore"]
["Consumo d’acqua per unità di prodotto","m3/ton"]
["Consumo d’energia per unità di prodotto","MWh/ton"]
["Inquinante significativo in acqua per unità di prodotto (da specificare) ovvero BAT AEL specifico ove presente"]
["Inquinante significativo in aria per unità di prodotto (da specificare) ovvero BAT AEL specifico ove presente"]
["Produzione di rifiuti EER xx.xx.xx per unità di prodotto ","t/t "]
["Produzione specifica di rifiuti","kg annui rifiuti prodotti/MWh generati"]
[null,"kg annui rifiuti prodotti/ton comb.utilizzato"]

{"sheet":"17","index":25,"n_rows":8,"n_cols":3,"rows_kept":8,"cut":false,"hidden":false,"merged":[[0,0,0,2]]}
["GESTIONALE"]
["Tabella 17 - Monitoraggio fattori emissivi"]
[null,null,"torna all'indice tabelle"]
[]
["Indicatore","Unità di misura","Valore"]
["Inquinante significativo in acqua ovvero Bat AELmassico ove presente","kg/anno"]
["Inquinante significativo in aria ovvero Bat AELmassico ove presente","kg/anno"]
["Produzione di rifiuto significativo EER xx.xx.xx inviato a smaltimento/recupero","t/anno"]

{"sheet":"18","index":26,"n_rows":14,"n_cols":3,"rows_kept":14,"cut":false,"hidden":false,"merged":[[0,0,0,2]]}
["GESTIONALE"]
["Tabella 18 - Circolarità installazione"]
[null,null,"torna all'indice tabelle"]
[]
["Indicatore","Unità di misura","Valore"]
["Materie prime sostituite con sottoprodotti e EoW"]
["Riduzione di rifiuti prodotti (prevenzione; ad es. Produzione sottoprodotti)"]
["Rifiuti prodotti inviati a recupero"]
["Riduzione nell’uso di sostanze pericolose e di SVHC (sostanze estremamente problematiche)"]
["Utilizzo di acqua recuperata"]
["Riduzione del consumo idrico"]
["Riduzione del consumo energetico"]
["Iniziative di simbiosi industriale"]
["Indice di recupero rifiuti annuo","% kg annui rifiuti inviati a recupero/kg annui rifiuti prodotti"]